bitfinex-derivatives/quotes_SOLF0:USTF0_20250719
["timestamp","ask_amount","ask_price","bid_price","bid_amount"]
[1752941129558,3.3,176.7,176.68,8.7668]
[1752941129760,2.40167424,176.72,176.68,8.7668]
[1752941129761,3.3,176.69,176.68,8.7668]
[1752941130151,8.05757424,176.72,176.69,5.6564]
[1752941130352,3.3,176.71,176.65,3.11]
[1752941130662,3.3,176.71,176.69,5.6565]
[1752941130853,3.3,176.71,176.7,3.11]
[1752941131458,3.3,176.73,176.7,3.11]
[1752941131661,2.40167424,176.76,176.7,3.11]
[1752941131860,5.70167424,176.76,176.7,3.11]
[1752941132057,5.70167424,176.76,176.75,3.11]
[1752941132561,3.3,176.75,176.72,5.6555]
[1752941132763,3.3,176.75,176.69,3.11]
[1752941133365,5.70167424,176.74,176.69,3.11]
[1752941133564,2.40167424,176.74,176.69,3.11]
[1752941133864,2.40167424,176.74,176.66,2.40167424]
[1752941133865,3.3,176.72,176.71,8.7658]
[1752941135156,3.3,176.72,176.71,3.11]
[1752941136266,3.3,176.71,176.7,3.11]
[1752941136970,3.3,176.71,176.68,3.11]
[1752941137170,3.3,176.71,176.67,3.11]
[1752941137367,3.3,176.71,176.68,3.11]
[1752941138475,8.9563,176.71,176.68,3.11]
[1752941138661,5.6563,176.71,176.68,3.11]
[1752941138858,3.3,176.69,176.68,3.11]
[1752941139163,3.3,176.69,176.62,107.70167424]
[1752941139374,3.3,176.69,176.66,3.11]
[1752941140164,2.40167424,176.7,176.66,3.11]
[1752941140366,3.3,176.68,176.66,3.11]
[1752941141367,3.3,176.68,176.67,3.11]
[1752941144873,3.3,176.67,176.66,3.11]
[1752941145866,3.3,176.67,176.62,105.3]
[1752941146066,3.3,176.66,176.65,3.11]
[1752941147472,3.3,176.68,176.65,3.11]
[1752941148974,8.05847424,176.69,176.65,3.11]
[1752941149170,3.3,176.67,176.65,3.11]
[1752941149367,3.3,176.67,176.66,3.11]
[1752941149772,3.3,176.67,176.64,3.11]
[1752941150174,3.3,176.67,176.65,3.11]
[1752941150375,3.07,176.68,176.65,3.11]
[1752941150570,3.07,176.68,176.64,5.6582]
[1752941150771,3.07,176.68,176.66,3.22]
[1752941151470,3.07,176.68,176.64,5.6582]
[1752941151676,3.07,176.67,176.66,3.22]
[1752941154176,5.47167424,176.67,176.64,3.22]
[1752941154378,3.07,176.66,176.64,3.22]
[1752941154679,3.07,176.65,176.64,3.22]
[1752941156274,3.07,176.65,176.61,8.8791]
[1752941156580,3.07,176.64,176.61,3.22]
[1752941156982,3.07,176.62,176.61,3.22]
[1752941157882,5.47167424,176.62,176.59,3.22]
[1752941158082,3.07,176.61,176.6,3.22]
[1752941158777,3.07,176.63,176.6,3.22]
[1752941158981,3.07,176.64,176.6,3.22]
[1752941159183,3.07,176.64,176.62,3.22]
[1752941159381,3.07,176.64,176.61,8.8791]
[1752941159581,3.07,176.64,176.62,3.22]
[1752941159878,3.07,176.64,176.56,3.22]
[1752941159879,2.40167424,176.63,176.56,3.22]
[1752941160082,3.07,176.62,176.56,3.22]
[1752941160283,2.40167424,176.61,176.56,3.22]
[1752941160479,2.40167424,176.61,176.49,2.40167424]
[1752941160480,2.40167424,176.57,176.51,3.22]
[1752941160681,3.07,176.56,176.5,3.22]
[1752941160980,5.47167424,176.56,176.5,3.22]
[1752941161280,3.07,176.59,176.52,3.22]
[1752941161480,2.40167424,176.62,176.54,3.22]
[1752941161674,3.07,176.61,176.54,3.22]
[1752941161882,8.7294,176.61,176.56,5.6606]
[1752941162082,5.47167424,176.6,176.57,3.22]
[1752941162273,3.07,176.59,176.58,3.22]
[1752941162983,3.07,176.6,176.58,3.22]
[1752941163186,3.07,176.6,176.53,2.40167424]
[1752941163385,3.07,176.6,176.54,3.22]
[1752941163584,3.07,176.6,176.57,8.8803]
[1752941165188,3.07,176.6,176.59,3.22]
[1752941165688,2.40167424,176.65,176.57,3.22]
[1752941165885,3.07,176.64,176.59,3.22]
[1752941166091,3.07,176.66,176.59,3.22]
[1752941166292,3.07,176.66,176.65,3.22]
[1752941166585,2.40167424,176.69,176.54,104.96]
[1752941166586,3.07,176.68,176.62,2.40167424]
[1752941166782,3.07,176.68,176.67,3.22]
[1752941167695,3.07,176.7,176.63,3.22]
[1752941168492,3.07,176.69,176.68,3.22]
[1752941169086,2.40167424,176.71,176.66,5.6576]
[1752941169292,3.07,176.68,176.67,3.22]
[1752941170699,3.07,176.68,176.65,5.6579]
[1752941170893,3.07,176.67,176.66,3.22]
[1752941171498,3.07,176.69,176.67,3.22]
[1752941171698,3.07,176.69,176.68,3.22]
[1752941173999,2.40167424,176.73,176.71,3.22]
[1752941174202,3.07,176.73,176.72,3.22]
[1752941174400,5.47167424,176.75,176.69,3.22]
[1752941174603,5.47167424,176.77,176.69,3.22]
[1752941174803,3.07,176.77,176.74,5.6549]
[1752941175003,3.07,176.77,176.75,3.22]
[1752941175299,2.40167424,176.82,176.76,3.22]
[1752941175603,3.07,176.8,176.76,3.22]
[1752941175800,3.07,176.8,176.77,5.654]
[1752941175996,3.07,176.8,176.76,3.22]
[1752941176194,3.07,176.82,176.76,3.22]
[1752941176394,3.07,176.84,176.8,5.653]
[1752941176602,3.07,176.84,176.83,3.22]
[1752941178304,3.07,176.85,176.84,3.22]
[1752941179099,274.71514128,176.88,176.84,3.22]
[1752941179307,3.07,176.87,176.84,3.22]
[1752941179506,5.47167424,176.9,176.84,3.22]
[1752941179706,5.47167424,176.9,176.85,5.6514]
[1752941179907,3.07,176.89,176.86,3.22]
[1752941180302,3.07,176.89,176.87,3.1]
[1752941180498,2.40167424,176.9,176.87,3.1]
[1752941180806,2.40167424,176.9,176.82,2.40167424]
[1752941181004,3.22,176.87,176.86,3.1]
[1752941181505,2.40167424,176.9,176.86,3.1]
[1752941181804,3.22,176.89,176.88,3.1]
[1752941182905,3.22,176.89,176.83,3.1]
[1752941184003,3.22,176.89,176.84,2.40167424]
[1752941184205,3.22,176.89,176.85,3.1]
[1752941184807,8.8707,176.88,176.85,3.1]
[1752941185202,8.8707,176.88,176.86,3.1]
[1752941185203,3.22,176.87,176.86,3.1]
[1752941185507,3.22,176.86,176.82,3.1]
[1752941185896,5.62167424,176.88,176.82,3.1]
[1752941186101,3.22,176.88,176.82,3.1]
[1752941186806,3.22,176.88,176.84,5.6519]
[1752941187008,3.22,176.89,176.85,3.1]
[1752941187307,3.22,176.88,176.85,3.1]
[1752941187608,3.22,176.88,176.84,3.1]
[1752941187810,3.22,176.89,176.85,3.1]
[1752941188009,2.40167424,176.87,176.8,2.40167424]
[1752941188204,3.22,176.85,176.84,3.1]
[1752941188404,3.22,176.84,176.83,3.1]
[1752941188702,3.22,176.87,176.83,3.1]
[1752941188898,3.22,176.87,176.84,3.1]
[1752941189806,3.22,176.89,176.85,3.1]
[1752941190602,3.22,176.89,176.86,5.6512]
[1752941191003,3.22,176.89,176.88,3.1]
[1752941191302,3.22,176.91,176.88,3.1]
[1752941191509,3.22,176.9,176.89,3.1]
[1752941194207,3.22,176.93,176.91,3.1]
[1752941194407,2.40167424,177.03,176.88,2.40167424]
[1752941194408,2.40167424,176.96,176.92,3.1]
[1752941194601,3.22,176.95,176.91,5.6495]
[1752941194905,2.40167424,176.96,176.93,3.1]
[1752941195107,3.22,176.94,176.93,3.1]
[1752941196012,3.22,176.94,176.9,3.1]
[1752941196306,3.22,176.93,176.9,3.1]
[1752941196501,3.22,176.93,176.85,2.40167424]
[1752941196502,3.22,176.91,176.88,3.1]
[1752941196703,3.22,176.89,176.86,3.1]
[1752941196901,3.22,176.88,176.87,3.1]
[1752941198506,8.05197424,176.9,176.84,5.6519]
[1752941198707,3.22,176.87,176.81,3.1]
[1752941199009,3.22,176.87,176.83,5.652]
[1752941199311,3.22,176.87,176.84,3.1]
[1752941199514,3.22,176.86,176.84,3.1]
[1752941200301,3.22,176.86,176.85,3.1]
[1752941201011,3.22,176.88,176.85,3.1]
[1752941201813,3.22,176.88,176.86,3.1]
[1752941202014,3.22,176.88,176.87,3.1]
[1752941203407,3.22,176.9,176.87,3.1]
[1752941204018,3.22,176.92,176.87,3.1]
[1752941204513,5.62167424,176.94,176.87,3.1]
[1752941204703,3.22,176.96,176.9,3.1]
[1752941204903,3.22,176.98,176.93,2.40167424]
[1752941205107,3.22,176.98,176.94,3.1]
[1752941205412,3.22,177.0,176.94,3.1]
[1752941205616,3.22,176.98,176.94,3.1]
[1752941206203,8.04827424,177.01,176.96,5.6478]
[1752941206408,3.22,176.99,176.98,3.1]
[1752941206713,3.22,177.02,176.99,5.6469]
[1752941206917,3.22,177.03,177.01,3.1]
[1752941207105,3.22,177.03,176.96,2.40167424]
[1752941207310,3.22,177.02,176.99,3.1]
[1752941207711,3.22,177.02,177.0,5.6465]
[1752941207906,3.22,177.02,177.01,3.1]
[1752941209417,2.40167424,177.1,177.01,3.1]
[1752941209615,3.22,177.09,177.03,3.1]
[1752941209811,3.22,177.09,177.04,5.6455]
[1752941210012,3.22,177.08,177.03,3.1]
[1752941210219,3.2,177.1,177.04,2.40167424]
[1752941210415,2.40167424,177.12,177.05,3.12]
[1752941210717,3.2,177.08,177.05,3.12]
[1752941210911,3.2,177.09,177.03,3.12]
[1752941211813,3.2,177.11,177.06,2.40167424]
[1752941212116,3.2,177.11,177.07,3.12]
[1752941212314,3.2,177.1,177.07,3.12]
[1752941212617,3.2,177.12,177.1,3.12]
[1752941212813,3.2,177.13,177.1,3.12]
[1752941213013,5.6429,177.13,177.1,3.12]
[1752941213209,3.2,177.13,177.07,3.12]
[1752941214520,8.8429,177.13,177.07,8.7644]
[1752941214812,662.26147989,177.15,177.07,3.12]
[1752941215009,3.2,177.13,177.09,5.6438]
[1752941215216,3.2,177.12,177.11,3.12]
[1752941216613,3.2,177.12,177.09,3.12]
[1752941216809,3.2,177.11,177.1,3.12]
[1752941217016,2.40167424,177.16,177.1,3.12]
[1752941217316,3.2,177.15,177.1,3.12]
[1752941217517,2.40167424,177.17,177.1,3.12]
[1752941217711,3.2,177.13,177.1,3.12]
[1752941218720,3.2,177.15,177.1,3.12]
[1752941219214,3.2,177.15,177.12,3.12]
[1752941219417,3.2,177.15,177.13,3.12]
[1752941219721,3.2,177.15,177.14,3.12]
[1752941220620,3.2,177.15,177.05,2.40167424]
[1752941220915,5.644,177.09,177.03,3.12]
[1752941221115,3.2,177.08,177.04,3.12]
[1752941221319,104.52,177.18,176.94,2.40167424]
[1752941221320,3.2,177.06,177.02,3.12]
[1752941221520,3.2,177.03,177.0,3.12]
[1752941221720,3.2,177.01,177.0,3.12]
[1752941221922,3.2,177.04,177.0,3.12]
[1752941222122,3.2,177.06,177.0,3.12]
[1752941222322,5.60167424,177.06,177.0,3.12]
[1752941222617,5.60167424,177.05,177.01,3.12]
[1752941222821,3.2,177.04,177.02,3.12]
[1752941223021,3.2,177.04,177.03,3.12]
[1752941223718,3.2,177.04,177.0,3.12]
[1752941223916,3.2,177.03,176.95,3.12]
[1752941225411,3.2,177.02,177.01,3.12]
[1752941226218,3.2,177.11,177.02,5.6462]
[1752941226523,3.2,177.05,177.03,3.12]
[1752941227421,3.2,177.04,177.01,3.12]
[1752941227721,3.2,177.04,176.96,3.12]
[1752941227924,3.2,177.04,177.01,5.6464]
[1752941228122,3.2,177.03,177.01,8.7664]
[1752941228320,3.2,177.05,176.95,3.931423]
[1752941228524,3.2,177.02,176.96,3.12]
[1752941229129,3.2,177.01,176.99,8.7669]
[1752941229319,3.2,177.01,176.99,3.12]
[1752941230221,3.2,177.0,176.99,3.12]
[1752941230429,3.2,177.03,177.0,3.12]
[1752941230723,3.2,177.02,177.0,3.12]
[1752941231317,3.931423,177.07,176.97,3.931423]
[1752941231524,3.931423,177.05,176.98,3.12]
[1752941231724,3.2,177.04,176.98,3.12]
[1752941231925,5.646,177.03,176.99,5.647]
[1752941232120,3.2,177.02,176.99,8.767]
[1752941232321,3.2,177.02,176.99,3.12]
[1752941232723,3.2,177.04,176.94,3.931423]
[1752941232924,3.2,177.04,177.0,3.12]
[1752941233221,3.2,177.09,176.99,3.12]
[1752941233416,3.2,177.07,176.99,3.12]
[1752941233622,3.931423,177.08,177.02,5.6462]
[1752941233924,3.2,177.03,177.02,8.7662]
[1752941235221,3.2,177.07,177.04,3.12]
[1752941235424,3.2,177.05,177.04,3.12]
[1752941236224,3.2,177.04,177.03,3.12]
[1752941237516,3.2,177.04,177.03,8.7659]
[1752941238419,5.6447,177.07,177.03,8.7659]
[1752941238726,3.2,177.05,177.04,3.12]
[1752941239818,3.2,177.05,177.02,5.6461]
[1752941240023,5.645,177.06,177.02,8.7661]
[1752941240225,3.2,177.03,177.02,8.7661]
[1752941240920,5.6447,177.07,177.03,8.8659]
[1752941241126,3.32,177.05,177.04,3.22]
[1752941241327,3.32,177.04,177.02,3.22]
[1752941241523,3.32,177.03,177.02,8.8662]
[1752941241723,3.32,177.03,176.95,3.22]
[1752941241925,7.251423,177.03,176.95,3.22]
[1752941242119,3.32,177.02,176.95,3.931423]
[1752941242326,3.32,177.02,176.96,3.22]
[1752941242519,3.32,177.02,177.01,5.6465]
[1752941242726,3.32,177.02,177.01,8.8665]
[1752941243118,3.32,177.04,177.03,5.6457]
[1752941243325,3.931423,177.09,177.03,8.8657]
[1752941243527,3.32,177.08,177.04,3.22]
[1752941244025,5.6448,177.07,177.04,3.22]
[1752941244225,3.32,177.05,177.04,3.22]
[1752941244425,3.32,177.05,177.02,8.8661]
[1752941244627,3.931423,177.03,176.98,3.22]
[1752941244824,3.32,177.02,176.98,3.22]
[1752941245028,5.73336763,177.02,176.98,3.22]
[1752941245224,3.32,177.01,176.98,3.22]
[1752941245426,3.32,177.0,176.98,3.22]
[1752941245828,3.32,177.0,176.99,5.647]
[1752941246228,3.32,176.99,176.98,3.22]
[1752941246427,3.32,176.98,176.95,3.22]
[1752941246828,6.30498871,177.09,176.95,3.22]
[1752941246829,3.32,177.0,176.95,3.22]
[1752941247024,3.32,177.02,176.95,3.22]
[1752941247931,3.32,177.01,176.99,8.867]
[1752941248331,3.32,177.01,176.99,5.647]
[1752941248534,3.32,177.01,177.0,8.8669]
[1752941250035,3.32,177.01,177.0,3.22]
[1752941250534,3.32,177.03,177.0,3.22]
[1752941250732,3.32,177.02,177.0,3.22]
[1752941250930,3.32,177.01,177.0,3.22]
[1752941251825,3.32,177.01,177.0,8.8667]
[1752941252133,2.41336763,177.05,177.0,3.22]
[1752941252328,8.05886763,177.05,177.01,5.6463]
[1752941252528,3.32,177.03,177.02,3.22]
[1752941253225,3.32,177.08,177.02,3.22]
[1752941253426,3.32,177.07,177.02,3.22]
[1752941253632,385.92498871,177.13,177.04,2.41336763]
[1752941253633,5.73336763,177.12,177.04,2.41336763]
[1752941253826,3.32,177.11,177.05,3.22]
[1752941254026,3.32,177.1,177.08,3.22]
[1752941254227,3.32,177.09,177.08,3.22]
[1752941254834,3.32,177.09,177.08,8.8643]
[1752941255637,3.32,177.09,177.08,5.6443]
[1752941256535,3.32,177.09,177.08,8.8643]
[1752941258238,3.32,177.09,177.08,3.22]
[1752941259840,3.32,177.13,177.08,3.22]
[1752941260534,8.9627,177.13,177.09,5.6439]
[1752941260733,5.6427,177.13,177.1,3.22]
[1752941261034,3.32,177.11,177.1,3.22]
[1752941261738,3.32,177.12,177.09,3.22]
[1752941262532,3.32,177.12,177.11,8.8633]
[1752941263439,3.32,177.14,177.11,3.22]
[1752941263639,3.32,177.14,177.12,3.22]
[1752941263836,3.32,177.14,177.13,8.8627]
[1752941264436,106.89336763,177.17,177.14,5.6423]
[1752941264437,3.32,177.16,177.14,5.6423]
[1752941264736,3.32,177.16,177.15,3.22]
[1752941265139,3.32,177.16,177.15,8.8621]
[1752941265341,3.32,177.18,177.17,3.22]
[1752941265841,106.85336763,177.22,177.14,2.41336763]
[1752941265842,3.32,177.19,177.18,3.22]
[1752941266342,3.32,177.19,177.18,8.8609]
[1752941266642,3.32,177.19,177.18,3.22]
[1752941266833,6.30498871,177.26,177.18,3.22]
[1752941266834,3.32,177.25,177.18,3.22]
[1752941267143,3.32,177.24,177.18,3.22]
[1752941267943,8.9594,177.24,177.2,5.6404]
[1752941268147,3.32,177.23,177.2,8.8604]
[1752941268643,3.32,177.2,177.13,3.22]
[1752941268837,2.41336763,177.19,177.13,3.22]
[1752941269044,3.32,177.18,177.13,3.22]
[1752941269742,3.32,177.18,177.14,3.22]
[1752941269943,2.41336763,177.17,177.12,3.22]
[1752941270334,3.03,177.13,177.12,3.22]
[1752941270938,3.03,177.13,177.12,8.8628]
[1752941271944,3.03,177.15,177.14,3.15]
[1752941272144,3.03,177.16,177.12,3.15]
[1752941272346,3.03,177.16,177.11,8.7932]
[1752941273043,3.03,177.16,177.12,3.15]
[1752941273247,3.03,177.14,177.1,3.15]
[1752941273544,3.03,177.12,177.09,3.15]
[1752941273743,3.03,177.12,177.04,381.93336763]
[1752941274044,3.03,177.12,177.08,3.15]
[1752941274346,3.03,177.11,177.08,3.15]
[1752941274658,3.03,177.12,177.05,3.15]
[1752941275346,8.05606763,177.13,177.09,5.6438]
[1752941275546,3.03,177.1,177.09,8.7938]
[1752941278751,3.03,177.1,177.04,381.93336763]
[1752941278752,3.03,177.13,177.07,3.15]
[1752941279348,8.05556763,177.15,177.11,5.643]
[1752941279555,3.03,177.12,177.11,8.793]
[1752941279750,3.03,177.12,177.11,5.643]
[1752941280554,3.03,177.12,177.11,8.793]
[1752941280956,3.03,177.14,177.09,3.15]
[1752941281153,2.41336763,177.15,177.09,3.15]
[1752941281353,3.03,177.12,177.09,3.15]
[1752941282149,104.38,177.21,177.12,3.15]
[1752941282351,385.72498871,177.22,177.12,3.15]
[1752941282352,3.03,177.16,177.12,3.15]
[1752941282562,3.03,177.18,177.12,2.41336763]
[1752941282755,3.03,177.17,177.16,3.15]
[1752941282954,3.03,177.17,177.12,2.41336763]
[1752941283156,8.05526763,177.16,177.13,5.6425]
[1752941283358,3.03,177.15,177.08,2.41336763]
[1752941283557,3.03,177.15,177.11,3.15]
[1752941283757,3.03,177.15,177.09,3.15]
[1752941284559,3.03,177.15,177.13,5.6424]
[1752941284760,3.03,177.15,177.11,3.15]
[1752941285063,3.03,177.15,177.12,3.15]
[1752941285257,3.03,177.15,177.13,5.6424]
[1752941285763,3.03,177.15,177.12,8.7929]
[1752941286465,3.03,177.15,177.12,3.15]
[1752941287066,3.03,177.14,177.1,5.6435]
[1752941287367,5.44336763,177.14,177.06,2.41336763]
[1752941287562,3.03,177.13,177.07,3.15]
[1752941287758,3.03,177.13,177.09,8.7938]
[1752941287962,3.03,177.13,177.1,3.15]
[1752941288562,3.03,177.12,177.1,3.15]
[1752941288866,3.03,177.11,177.1,3.15]
[1752941289267,2.41336763,177.16,177.11,3.15]
[1752941289464,3.03,177.15,177.12,3.15]
[1752941290561,3.03,177.14,177.1,8.7935]
[1752941290766,3.03,177.14,177.11,3.15]
[1752941290967,3.03,177.14,177.12,3.15]
[1752941291660,3.03,177.14,177.08,2.41336763]
[1752941291967,3.03,177.13,177.11,3.15]
[1752941292263,2.41336763,177.16,177.07,5.6444]
[1752941292264,3.03,177.11,177.07,5.6444]
[1752941292467,3.03,177.11,177.07,8.7944]
[1752941292667,3.03,177.1,177.07,8.7944]
[1752941292867,3.03,177.1,177.06,5.6448]
[1752941293067,3.03,177.1,177.06,8.7948]
[1752941293666,2.41336763,177.1,177.07,8.7946]
[1752941293965,3.03,177.08,177.07,8.7946]
[1752941294667,3.03,177.11,177.1,3.15]
[1752941294860,3.03,177.14,177.1,3.15]
[1752941295065,3.03,177.14,177.13,5.6427]
[1752941295270,3.03,177.14,177.13,8.7927]
[1752941295465,3.03,177.16,177.14,3.15]
[1752941295669,3.03,177.15,177.14,3.15]
[1752941295972,194.5739622,177.17,177.15,3.15]
[1752941296166,3.03,177.18,177.15,3.15]
[1752941296472,3.03,177.18,177.17,3.15]
[1752941296665,5.44336763,177.18,177.1,2.41336763]
[1752941296869,3.03,177.17,177.11,3.15]
[1752941297067,3.03,177.17,177.14,5.6423]
[1752941297268,3.03,177.17,177.14,8.7923]
[1752941297872,8.6714,177.17,177.14,3.15]
[1752941298072,3.03,177.16,177.14,3.15]
[1752941298266,3.03,177.15,177.14,3.15]
[1752941298468,5.6414,177.17,177.13,5.6426]
[1752941298771,3.03,177.16,177.13,8.7926]
[1752941299270,5.44336763,177.16,177.11,3.15]
[1752941299469,3.03,177.15,177.11,3.15]
[1752941299667,3.03,177.15,177.12,3.15]
[1752941299872,3.03,177.15,177.12,8.7928]
[1752941300070,3.03,177.15,177.12,3.15]
[1752941300369,5.6421,177.15,177.12,3.15]
[1752941300563,3.09,177.13,177.12,3.15]
[1752941301372,3.09,177.15,177.08,2.41336763]
[1752941301575,3.09,177.15,177.11,3.17]
[1752941301872,3.09,177.15,177.13,5.6424]
[1752941302074,3.09,177.15,177.14,3.17]
[1752941303074,3.09,177.15,177.14,8.8124]
[1752941303269,3.09,177.17,177.1,2.41336763]
[1752941303472,3.09,177.17,177.16,3.17]
[1752941303876,3.09,177.19,177.18,3.17]
[1752941304073,104.34,177.2,177.18,3.17]
[1752941304278,3.09,177.22,177.19,5.6408]
[1752941304579,3.09,177.21,177.19,5.6408]
[1752941304777,3.09,177.21,177.2,3.17]
[1752941305377,3.09,177.2,177.19,3.17]
[1752941306581,3.09,177.2,177.18,8.811]
[1752941306881,3.09,177.2,177.19,3.17]
[1752941307681,3.09,177.2,177.19,8.8108]
[1752941309483,3.09,177.2,177.18,8.811]
[1752941309675,3.09,177.19,177.18,8.811]
[1752941311385,3.09,177.19,177.18,3.17]
[1752941311684,3.09,177.19,177.14,2.41336763]
[1752941311685,5.50336763,177.19,177.14,3.17]
[1752941311881,6.31162613,177.23,177.12,3.17]
[1752941311882,3.09,177.16,177.12,3.17]
[1752941312282,3.09,177.16,177.13,3.17]
[1752941312482,3.09,177.16,177.13,8.8126]
[1752941312684,3.09,177.15,177.14,3.17]
[1752941312884,3.09,177.17,177.14,8.8122]
[1752941313080,8.05466763,177.18,177.03,18.40527937]
[1752941313081,2.41336763,177.19,177.15,3.17]
[1752941313280,3.09,177.18,177.16,3.17]
[1752941313490,3.09,177.18,177.16,8.8118]
[1752941313787,3.09,177.18,177.17,3.17]
[1752941314488,3.09,177.18,177.15,8.8119]
[1752941314689,3.09,177.17,177.16,3.17]
[1752941315185,3.09,177.16,177.12,3.17]
[1752941315486,3.09,177.14,177.1,3.17]
[1752941315791,3.09,177.14,177.06,2.41336763]
[1752941315987,3.09,177.14,177.07,3.17]
[1752941316792,2.41336763,177.15,177.11,8.8132]
[1752941316993,3.09,177.12,177.11,8.8132]
[1752941317599,3.09,177.12,177.06,2.41336763]
[1752941317894,5.6431,177.12,177.09,3.17]
[1752941318195,2.41336763,177.11,177.05,3.17]
[1752941318393,3.09,177.09,177.05,3.17]
[1752941318597,3.09,177.1,177.05,3.17]
[1752941318797,3.09,177.1,177.07,5.6446]
[1752941319093,6.31162613,177.15,177.02,2.41336763]
[1752941319094,3.09,177.08,177.02,3.17]
[1752941319400,3.09,177.06,177.02,3.17]
[1752941319691,3.09,177.05,177.02,3.17]
[1752941319996,3.09,177.05,177.04,5.6457]
[1752941320195,3.09,177.05,177.04,3.17]
[1752941320498,3.09,177.05,177.02,8.8161]
[1752941321500,3.09,177.05,177.03,5.6459]
[1752941321697,3.09,177.05,177.03,8.8159]
[1752941321894,3.09,177.05,177.04,3.17]
[1752941322797,3.09,177.05,177.04,8.8157]
[1752941323601,2.41336763,177.06,177.04,8.8157]
[1752941323794,2.41336763,177.09,177.01,2.41336763]
[1752941323998,5.50336763,177.09,177.02,3.17]
[1752941324497,3.09,177.08,177.07,3.17]
[1752941326297,3.09,177.07,177.06,3.17]
[1752941326797,2.41336763,177.07,176.96,379.44]
[1752941327003,2.41336763,177.03,176.96,3.17]
[1752941327203,3.09,177.02,176.96,3.17]
[1752941327900,2.41336763,177.03,176.94,2.41336763]
[1752941328104,3.09,177.01,177.0,3.17]
[1752941328302,2.41336763,177.03,177.0,3.17]
[1752941328506,3.09,177.02,177.01,3.17]
[1752941330405,8.05886763,177.05,177.01,3.17]
[1752941330606,3.23,177.03,177.02,3.27]
[1752941332005,5.64336763,177.05,176.98,2.41336763]
[1752941332207,3.23,177.05,177.04,3.27]
[1752941332708,3.23,177.05,176.98,2.41336763]
[1752941332904,3.23,177.05,176.99,3.27]
[1752941333110,3.23,177.03,176.99,3.27]
[1752941333610,3.23,177.03,177.02,3.27]
[1752941333802,3.23,177.03,176.92,11.2988]
[1752941334007,3.23,177.02,176.98,3.27]
[1752941334311,3.23,176.99,176.98,8.9174]
[1752941334812,3.23,177.02,177.0,3.27]